bitfinex/quotes_ETHUSD_20251021
["timestamp","ask_amount","ask_price","bid_price","bid_amount"]
[1761010589727,31.492467,3964.7,3964.6,0.002]
[1761010589914,31.605467,3964.7,3964.6,0.002]
[1761010590111,22.745717,3964.7,3964.6,0.002]
[1761010590698,23.18535576,3964.7,3964.6,0.002]
[1761010591008,23.73668076,3964.7,3964.6,0.002]
[1761010591203,23.08547376,3964.7,3964.6,0.002]
[1761010591805,13.06812876,3964.7,3964.6,0.002]
[1761010592014,29.76556576,3964.7,3964.6,0.002]
[1761010592340,28.76556576,3964.7,3964.6,0.002]
[1761010592533,10.69365169,3964.7,3964.6,0.002]
[1761010592699,10.79285169,3964.7,3964.6,0.002]
[1761010592896,7.97109769,3964.7,3964.6,0.002]
[1761010593104,18.12912669,3964.7,3964.6,0.002]
[1761010593750,18.63700669,3964.7,3964.6,0.002]
[1761010594039,25.72104223,3964.7,3964.6,0.002]
[1761010595116,32.02899623,3964.7,3964.6,0.002]
[1761010595316,28.75556223,3964.7,3964.6,0.002]
[1761010596035,22.11440523,3964.7,3964.6,0.002]
[1761010596200,21.82031862,3964.7,3964.6,0.002]
[1761010597031,0.50688,3964.4,3964.2,0.002]
[1761010597237,28.96421848,3964.3,3964.2,0.002]
[1761010597436,28.9455265,3964.3,3964.2,0.002]
[1761010597625,29.0447265,3964.3,3964.2,0.002]
[1761010597932,29.48437467,3964.3,3964.2,0.002]
[1761010598098,34.33669267,3964.3,3964.2,0.002]
[1761010598306,34.93650721,3964.3,3964.2,0.002]
[1761010598518,27.7775756,3964.3,3964.2,0.002]
[1761010599129,31.9722936,3964.3,3964.2,0.002]
[1761010599329,31.5428206,3964.3,3964.2,0.002]
[1761010599536,28.4228206,3964.3,3964.2,0.002]
[1761010599912,27.9426306,3964.3,3964.2,0.002]
[1761010600110,28.6903126,3964.3,3964.2,0.002]
[1761010601050,30.8484026,3964.3,3964.2,0.002]
[1761010601408,27.2458586,3964.3,3964.2,0.002]
[1761010602043,13.3751206,3964.3,3964.2,0.002]
[1761010602250,31.4122646,3964.3,3964.2,0.002]
[1761010602806,31.8821646,3964.3,3964.2,0.002]
[1761010603036,13.53929267,3964.3,3964.2,0.002]
[1761010603204,32.60935667,3964.3,3964.2,0.002]
[1761010603409,30.28307367,3964.3,3964.2,0.002]
[1761010603821,36.71307367,3964.3,3964.2,0.002]
[1761010604144,41.14583567,3964.3,3964.2,0.002]
[1761010605011,39.50473467,3964.3,3964.2,0.002]
[1761010605207,40.21599267,3964.3,3964.2,0.002]
[1761010606248,40.50059467,3964.3,3964.2,0.002]
[1761010607820,41.10040921,3964.3,3964.2,0.002]
[1761010608021,45.69056028,3964.3,3964.2,0.002]
[1761010608227,20.56910721,3964.3,3964.2,0.002]
[1761010608421,41.11508221,3964.3,3964.2,0.002]
[1761010609262,2.52319849,3963.3,3962.8,0.4699]
[1761010609468,0.50688,3963.8,3962.8,0.4699]
[1761010609469,6.31815107,3962.9,3962.8,0.4699]
[1761010609762,4.37711956,3962.8,3962.7,0.4699]
[1761010609965,4.27021154,3962.8,3962.7,0.4699]
[1761010610459,0.1256,3962.7,3962.2,2.52382722]
[1761010610697,0.01869198,3962.6,3962.2,0.50537893]
[1761010610837,0.01869198,3962.6,3962.3,2.52378668]
[1761010611021,0.01869198,3962.6,3962.2,0.50537893]
[1761010611022,1.728,3963.1,3962.4,0.49513722]
[1761010611219,1.728,3963.1,3962.6,2.52356835]
[1761010611439,0.1256,3962.6,3962.4,0.49513722]
[1761010611831,0.1256,3962.6,3962.5,2.5236593]
[1761010612030,0.1256,3962.6,3962.5,3.07790604]
[1761010612251,1.728,3964.2,3963.3,2.52309512]
[1761010612524,1.728,3963.7,3963.2,2.52320802]
[1761010612724,1.728,3963.4,3962.7,0.4699]
[1761010612950,1.728,3963.4,3962.9,2.5233589]
[1761010613150,1.728,3963.4,3963.0,2.52333332]
[1761010613455,1.728,3963.4,3963.3,0.2223]
[1761010613952,1.728,3963.4,3963.3,0.6922]
[1761010615168,1.728,3963.7,3963.4,2.52305238]
[1761010615351,1.728,3963.7,3963.6,2.52295892]
[1761010615750,1.728,3963.7,3963.6,2.99285892]
[1761010616276,0.001,3963.8,3963.7,2.52289527]
[1761010616485,0.001,3963.8,3963.7,2.99279527]
[1761010619761,0.001,3963.8,3963.7,2.52289527]
[1761010619956,0.001,3963.8,3963.7,2.99279527]
[1761010622783,0.001,3963.8,3963.7,0.4699]
[1761010624288,0.001,3963.8,3963.3,0.2223]
[1761010624289,0.01969198,3963.8,3963.3,0.2223]
[1761010624492,0.1256,3963.6,3963.4,0.474]
[1761010624994,0.1256,3963.6,3963.4,2.99706465]
[1761010625590,0.1256,3963.6,3963.5,0.474]
[1761010627764,0.1256,3963.6,3963.5,2.99702258]
[1761010629490,0.1256,3963.6,3963.5,0.474]
[1761010630370,0.1256,3963.6,3963.5,2.99702258]
[1761010630694,0.1256,3963.6,3963.5,0.474]
[1761010630894,0.14429198,3963.6,3963.5,0.474]
[1761010632080,0.14429198,3963.6,3963.3,0.2223]
[1761010632081,1.87229198,3963.6,3963.3,0.2223]
[1761010632293,6.44375107,3963.4,3963.3,0.2223]
[1761010632684,1.728,3963.3,3963.1,0.474]
[1761010632884,1.74669198,3963.3,3963.1,0.474]
[1761010633103,1.74669198,3963.3,3963.1,2.99726394]
[1761010634597,1.74669198,3963.3,3963.2,2.99721356]
[1761010634598,1.728,3963.3,3963.2,2.99721356]
[1761010635477,1.728,3963.3,3963.2,0.474]
[1761010635901,1.728,3963.3,3963.2,2.99721356]
[1761010636206,1.728,3963.4,3963.3,2.52313764]
[1761010636405,1.728,3963.4,3963.2,2.95429794]
[1761010636904,1.728,3963.4,3963.3,0.4311]
[1761010637106,1.728,3963.4,3963.3,2.9542499]
[1761010639805,0.1256,3963.5,3963.4,2.52308623]
[1761010640005,0.1256,3963.5,3963.4,2.95418623]
[1761010644733,0.1256,3963.5,3963.4,0.4311]
[1761010644940,0.1256,3963.5,3963.2,6.13726468]
[1761010645134,0.1256,3963.5,3963.3,0.4311]
[1761010645625,0.1256,3963.5,3963.1,3.183]
[1761010645826,0.1256,3963.5,3963.2,2.52320175]
[1761010646026,0.1256,3963.5,3963.2,2.95430175]
[1761010646331,0.1256,3963.5,3963.3,0.4311]
[1761010646922,0.01869198,3963.4,3963.2,2.5231939]
[1761010647314,0.01869198,3963.6,3963.2,2.5231939]
[1761010647706,0.1256,3963.2,3963.1,2.52326129]
[1761010648251,0.1256,3963.2,3963.1,2.95436129]
[1761010648430,0.1256,3963.2,3963.1,0.4311]
[1761010648630,0.1256,3963.2,3963.0,5.92992225]
[1761010649025,0.1256,3963.2,3963.0,6.36102225]
[1761010649748,0.1256,3963.2,3963.1,2.52327723]
[1761010651133,0.1256,3963.2,3963.0,2.52332749]
[1761010651430,0.1256,3963.2,3963.1,0.002]
[1761010651635,7.2385405,3963.2,3963.1,0.002]
[1761010651931,9.5417915,3963.2,3963.1,0.002]
[1761010652132,9.58576006,3963.2,3963.1,0.002]
[1761010652531,9.5417915,3963.2,3963.1,0.002]
[1761010654226,12.06500506,3963.2,3963.1,0.002]
[1761010657714,11.96600506,3963.2,3963.1,0.002]
[1761010658155,9.4427915,3963.2,3963.1,0.002]
[1761010658362,7.2385405,3963.2,3963.1,0.002]
[1761010659367,9.6357535,3963.2,3963.1,0.002]
[1761010659581,7.2385405,3963.2,3963.1,0.002]
[1761010660546,9.76175406,3963.2,3963.1,0.002]
[1761010660745,13.32405506,3963.2,3963.1,0.002]
[1761010661246,10.8008415,3963.2,3963.1,0.002]
[1761010661448,7.2385405,3963.2,3963.1,0.002]
[1761010666874,1.728,3963.2,3963.1,3.22757723]
[1761010667970,1.728,3963.2,3963.1,2.76257723]
[1761010668278,1.728,3963.2,3963.1,3.22757723]
[1761010675396,0.1256,3963.3,3963.2,2.52321356]
[1761010675696,0.1256,3963.3,3963.2,2.98821356]
[1761010681994,0.1256,3963.3,3963.1,0.2335]
[1761010682311,0.1256,3963.3,3963.1,0.002]
[1761010683692,0.1256,3963.3,3963.1,0.4607]
[1761010683894,0.1256,3963.3,3963.1,0.002]
[1761010684191,0.01869198,3963.2,3963.1,0.002]
[1761010684402,4.92969198,3963.2,3963.1,0.002]
[1761010685624,7.55190554,3963.2,3963.1,0.002]
[1761010685924,7.53321356,3963.2,3963.1,0.002]
[1761010687006,24.12206856,3963.2,3963.1,0.002]
[1761010687204,26.42729556,3963.2,3963.1,0.002]
[1761010687608,22.97687956,3963.2,3963.1,0.002]
[1761010688204,24.97426056,3963.2,3963.1,0.002]
[1761010688405,24.08932456,3963.2,3963.1,0.002]
[1761010689002,2.52346825,3962.8,3962.7,0.002]
[1761010689201,42.96370073,3962.8,3962.7,0.002]
[1761010689534,0.50688,3962.2,3960.3,0.8158]
[1761010689829,0.1256,3960.4,3960.3,0.6902]
[1761010690398,0.1159,3961.8,3960.3,0.6902]
[1761010690606,1.728,3961.5,3960.4,0.4587]
[1761010690810,3.191,3962.1,3961.6,0.2315]
[1761010691018,0.01869198,3962.0,3961.8,2.5241052]
[1761010691234,3.191,3962.1,3961.8,2.5241052]
[1761010691445,3.192,3962.3,3961.9,0.4587]
[1761010691734,1.728,3962.2,3961.9,2.98273817]
[1761010691899,3.192,3962.3,3962.2,0.2315]
[1761010692103,3.192,3962.6,3962.3,2.52378668]
[1761010692306,3.192,3962.6,3962.4,2.52372217]
[1761010692540,1.728,3962.5,3962.4,2.98242217]
[1761010692906,3.192,3962.6,3962.5,2.5236593]
[1761010693101,3.192,3962.6,3962.5,2.9823593]
[1761010693611,3.192,3962.6,3962.4,2.52370631]
[1761010694012,3.192,3962.6,3962.3,0.4587]
[1761010694013,3.192,3962.6,3962.5,2.5236593]
[1761010694501,0.86237536,3963.6,3962.5,1.03246324]
[1761010694502,3.6507,3963.6,3962.5,1.03246324]
[1761010694701,1.728,3963.5,3963.2,2.52320894]
[1761010694924,3.192,3963.6,3963.2,2.52320894]
[1761010695316,3.192,3963.6,3963.2,2.98190894]
[1761010696448,3.192,3963.6,3963.3,0.457]
[1761010696743,3.192,3963.6,3963.4,2.5230809]
[1761010697199,3.192,3963.6,3963.5,2.52302258]
[1761010697805,3.192,3963.6,3963.5,2.98002258]
[1761010698305,3.192,3963.6,3963.5,0.457]
[1761010698529,3.192,3963.6,3963.5,2.52302258]
[1761010699808,4.92,3963.6,3963.4,2.52305908]
[1761010700036,4.92,3963.6,3963.5,2.52302258]
[1761010700235,3.192,3963.6,3963.5,2.52302258]
[1761010700539,3.192,3963.6,3963.5,2.98002258]
[1761010702936,0.001,3963.8,3963.6,2.52295314]
[1761010703766,0.001,3963.8,3963.7,2.52289527]
[1761010703926,0.1266,3963.8,3963.7,3.2321848]
[1761010704125,0.001,3963.8,3963.7,3.2321848]
[1761010705472,0.001,3963.8,3963.7,3.88989375]
[1761010705628,0.001,3963.8,3963.7,3.8646648]
[1761010707325,0.001,3963.8,3963.7,3.88989375]
[1761010707853,0.001,3963.8,3963.7,3.8646648]
[1761010708254,0.001,3963.8,3963.7,3.88989375]
[1761010709672,0.001,3963.8,3963.7,5.61789375]
[1761010709874,0.001,3963.8,3963.7,5.5926648]
[1761010710224,0.1266,3965.7,3963.7,5.5926648]
[1761010710225,0.001,3965.7,3965.3,2.52187728]
[1761010710543,0.001,3965.7,3965.3,6.16987728]
[1761010710949,0.001,3965.7,3965.3,6.77785379]
[1761010711364,0.001,3966.4,3965.9,4.75637575]
[1761010711536,0.001,3966.8,3966.7,2.52098721]
[1761010711741,0.001,3966.8,3966.7,5.74019708]
[1761010712046,0.001,3966.8,3966.7,7.02620635]
[1761010712227,0.001,3966.8,3966.7,7.53308635]
[1761010712658,0.001,3966.8,3966.7,9.26108635]
[1761010715258,0.001,3966.8,3966.7,9.36212515]
[1761010716087,0.001,3966.8,3966.7,3.93324515]
[1761010716271,0.001,3966.8,3966.7,2.52098721]
[1761010716587,0.001,3966.8,3966.7,5.71398721]
[1761010717184,0.001,3966.8,3966.0,2.62249896]
[1761010717185,0.001,3966.8,3966.0,0.10107276]
[1761010717361,0.001,3966.8,3966.1,3.4177]
[1761010717567,0.001,3966.8,3966.7,2.52098721]
[1761010718075,0.001,3966.8,3966.7,2.98059708]
[1761010718290,0.001,3966.8,3966.7,3.85016671]
[1761010719488,0.001,3966.8,3966.7,3.82495684]
[1761010719891,0.001,3966.8,3966.7,2.95538721]
[1761010720392,0.001,3966.8,3966.7,3.08098721]
[1761010720591,0.001,3966.8,3966.7,2.64658721]
[1761010721196,0.001,3966.8,3966.7,3.08098721]
[1761010721359,0.001,3966.8,3966.7,6.30019708]
[1761010721565,0.001,3966.8,3966.7,7.16742325]
[1761010723289,0.001,3966.8,3966.7,6.73302325]
[1761010723702,0.001,3966.8,3966.7,7.16742325]
[1761010725574,0.001,3966.8,3966.7,2.64658721]
[1761010725779,0.001,3966.8,3966.7,5.71398721]
[1761010725997,0.001,3966.8,3966.7,2.52098721]
[1761010726197,0.001,3966.8,3966.7,5.71498721]
[1761010731228,0.001,3966.8,3966.7,6.14938721]
[1761010731425,0.001,3966.8,3966.7,7.02919586]
[1761010735239,0.001,3966.8,3966.4,0.002]
[1761010735403,0.001,3966.8,3966.7,2.52098721]
[1761010736029,0.001,3966.8,3966.6,2.52104906]
[1761010736439,0.001,3966.8,3966.7,2.52098721]
[1761010736839,0.001,3966.8,3966.6,2.5210041]
[1761010737036,0.0992,3966.7,3966.5,5.71410415]
[1761010737205,0.001,3966.8,3966.6,2.52103757]
[1761010737402,0.001,3966.8,3966.7,2.52098721]
[1761010737630,0.0992,3967.4,3966.7,2.52098721]
[1761010737631,0.001,3969.9,3968.7,2.51971678]
[1761010737829,0.001,3969.9,3968.7,8.41599678]
[1761010738035,0.001,3969.9,3968.7,9.44402022]
[1761010738239,0.001,3969.9,3969.1,4.75434285]
[1761010738443,0.001,3969.9,3969.1,6.47804285]
[1761010738644,0.001,3969.9,3968.3,0.2247]
[1761010738645,0.001,3969.9,3968.7,2.7444079]
[1761010738950,0.0991,3969.6,3968.8,3.46207692]
[1761010739239,0.0991,3969.6,3969.0,2.51952632]
[1761010739429,0.2111,3969.2,3969.0,2.51952632]
[1761010739630,0.001,3969.2,3969.1,2.51946285]
[1761010740030,0.001,3969.2,3969.1,2.75460907]
[1761010740449,0.001,3969.2,3969.1,0.23514622]
[1761010742255,0.001,3969.2,3968.8,5.74663027]
[1761010742444,0.001,3969.2,3969.0,2.51951534]
[1761010742629,0.001,3969.2,3969.1,2.75455582]
[1761010742840,0.001,3969.2,3969.1,5.74646285]
[1761010744030,0.001,3969.2,3969.1,3.227]
[1761010744347,0.001,3969.2,3969.1,5.74646285]
[1761010749641,0.001,3969.2,3969.1,3.227]
[1761010750158,0.001,3969.2,3969.1,5.74646285]
[1761010750462,0.001,3969.2,3969.1,3.227]
[1761010751266,0.001,3969.2,3969.1,5.74646285]
[1761010751751,0.001,3969.2,3969.1,3.227]
[1761010751950,0.001,3969.2,3969.1,5.74646285]
[1761010752153,0.001,3969.2,3969.1,3.227]
[1761010754054,0.1,3969.2,3968.7,0.1256]
[1761010754585,0.1256,3969.1,3968.8,3.22]
[1761010754959,0.3357,3969.1,3968.8,3.22]
[1761010755675,0.1122,3968.9,3968.4,0.1256]
[1761010755845,0.1256,3968.7,3968.1,2.52005104]
[1761010756050,2.6186631,3968.8,3968.3,3.219]
[1761010756367,0.099,3968.8,3968.3,3.219]
[1761010756560,0.099,3968.7,3968.3,5.73896295]
[1761010756754,0.099,3968.7,3968.3,3.219]
[1761010757262,0.099,3968.7,3968.4,0.002]
[1761010758689,0.1122,3968.9,3968.4,0.002]
[1761010758853,0.2112,3968.9,3968.4,0.002]
[1761010761156,0.1122,3968.9,3968.4,0.002]
[1761010761382,0.1122,3968.9,3968.4,2.52188912]
[1761010761684,0.1122,3968.9,3968.4,0.002]
[1761010762755,0.2112,3968.9,3968.4,0.002]
[1761010764584,0.2112,3968.9,3968.4,2.52190471]
[1761010766209,0.1256,3968.7,3968.4,2.52190471]
[1761010766414,0.1256,3968.7,3968.5,2.5198408]
[1761010766706,0.1256,3968.7,3968.4,0.002]
[1761010766878,0.1256,3968.7,3968.6,2.51978027]
[1761010767588,0.1256,3968.7,3968.5,2.51982753]
[1761010767898,0.1256,3968.7,3968.6,2.51978027]
[1761010768286,0.1256,3968.7,3968.4,0.002]
[1761010768287,2.51984376,3968.5,3968.4,0.002]
[1761010768490,11.69097776,3968.5,3968.4,0.002]
[1761010768677,11.27857576,3968.5,3968.4,0.002]
[1761010768883,4.24784376,3968.5,3968.4,0.002]
[1761010769079,4.34694376,3968.5,3968.4,0.002]
[1761010771897,24.88722076,3968.5,3968.4,0.002]
[1761010772095,19.84343676,3968.5,3968.4,0.002]
[1761010772500,16.37948076,3968.5,3968.4,0.002]
[1761010772818,16.42340695,3968.5,3968.4,0.002]
[1761010773019,16.58272295,3968.5,3968.4,0.002]
[1761010773902,21.87868895,3968.5,3968.4,0.002]
[1761010774718,20.98302895,3968.5,3968.4,0.002]
[1761010774894,12.95267895,3968.5,3968.4,0.002]
[1761010775100,4.39086995,3968.5,3968.4,0.002]
[1761010775520,6.94495795,3968.5,3968.4,0.002]
[1761010776020,4.39086995,3968.5,3968.4,0.002]
[1761010776216,8.51092195,3968.5,3968.4,0.002]
[1761010776590,7.06367795,3968.5,3968.4,0.002]
[1761010777026,29.20335095,3968.5,3968.4,0.002]
[1761010777192,29.52624046,3968.5,3968.4,0.002]
[1761010777990,41.65063946,3968.5,3968.4,0.002]
[1761010778417,3.02697777,3968.1,3968.0,1e-08]
[1761010778627,48.09353282,3968.1,3968.0,1e-08]
[1761010778920,48.19263282,3968.1,3968.0,1e-08]
[1761010779102,44.65526282,3968.1,3968.0,1e-08]
[1761010779301,44.05446082,3968.1,3968.0,1e-08]
[1761010779501,43.23599582,3968.1,3968.0,1e-08]
[1761010779721,42.51327282,3968.1,3968.0,1e-08]
[1761010780100,46.30316509,3968.1,3968.0,1e-08]
[1761010780501,38.54168409,3968.1,3968.0,1e-08]
[1761010781126,42.42326409,3968.1,3968.0,1e-08]
[1761010781708,42.8186266,3968.1,3968.0,1e-08]
[1761010782234,49.6949096,3968.1,3968.0,1e-08]
[1761010782530,17.27394355,3968.1,3968.0,1e-08]
[1761010783232,29.88038355,3968.1,3968.0,1e-08]
[1761010783606,43.3213356,3968.1,3968.0,1e-08]
[1761010783809,43.6881513,3968.1,3968.0,1e-08]
[1761010784215,48.0064363,3968.1,3968.0,1e-08]
[1761010784801,38.1996883,3968.1,3968.0,1e-08]
[1761010785007,35.8417006,3968.1,3968.0,1e-08]
[1761010785206,36.3010776,3968.1,3968.0,1e-08]
[1761010785535,36.6678933,3968.1,3968.0,1e-08]
[1761010785735,36.95500496,3968.1,3968.0,1e-08]
[1761010786232,52.60325696,3968.1,3968.0,1e-08]
[1761010786410,52.3161453,3968.1,3968.0,1e-08]
[1761010787610,54.9751453,3968.1,3968.0,1e-08]
[1761010788138,54.9751453,3968.1,3967.6,0.002]
[1761010788139,37.41423184,3967.7,3967.6,0.002]
[1761010788342,40.99304754,3967.7,3967.6,0.002]
[1761010788505,41.09214754,3967.7,3967.6,0.002]
[1761010788712,39.53514354,3967.7,3967.6,0.002]
[1761010789044,36.91249089,3967.7,3967.6,0.002]
[1761010789337,42.22695789,3967.7,3967.6,0.002]
[1761010789920,35.88046389,3967.7,3967.6,0.002]
[1761010790121,33.62930189,3967.7,3967.6,0.002]
[1761010790421,37.88432889,3967.7,3967.6,0.002]
[1761010790626,37.78522889,3967.7,3967.6,0.002]
[1761010790833,37.88432889,3967.7,3967.6,0.002]
[1761010791338,51.15811319,3967.7,3967.6,0.002]
[1761010791542,41.99402719,3967.7,3967.6,0.002]
[1761010791714,38.48415882,3967.7,3967.6,0.002]
[1761010792336,39.75245282,3967.7,3967.6,0.002]
[1761010792530,39.51113482,3967.7,3967.6,0.002]
[1761010792845,37.00435682,3967.7,3967.6,0.002]
[1761010793345,37.81980582,3967.7,3967.6,0.002]
[1761010793847,44.24980582,3967.7,3967.6,0.002]
[1761010794437,48.58739082,3967.7,3967.6,0.002]
[1761010794644,24.91187607,3967.7,3967.6,0.002]
[1761010794915,25.01097607,3967.7,3967.6,0.002]
[1761010795116,18.66165507,3967.7,3967.6,0.002]
[1761010795341,22.82506707,3967.7,3967.6,0.002]
[1761010796345,14.83658707,3967.7,3967.6,0.002]
[1761010796539,22.96192807,3967.7,3967.6,0.002]
[1761010796738,23.06102807,3967.7,3967.6,0.002]
[1761010797122,22.96192807,3967.7,3967.6,0.002]
[1761010797541,25.31981807,3967.7,3967.6,0.002]
[1761010797953,22.38070707,3967.7,3967.6,0.002]
[1761010798539,21.40843307,3967.7,3967.6,0.002]
[1761010799546,28.42359307,3967.7,3967.6,0.002]
[1761010799849,26.56897107,3967.7,3967.6,0.002]
[1761010800041,26.46987107,3967.7,3967.6,0.002]
[1761010800442,27.65487907,3967.7,3967.6,0.002]
[1761010800839,25.78622707,3967.7,3967.6,0.002]
[1761010801042,22.31640707,3967.7,3967.6,0.002]
[1761010801549,17.70100807,3967.7,3967.6,0.002]
[1761010801732,17.30559444,3967.7,3967.6,0.002]
[1761010801928,17.21795544,3967.7,3967.6,0.4433]
[1761010802127,17.21795544,3967.7,3967.6,0.002]
[1761010802330,17.27311384,3967.7,3967.6,0.002]
[1761010802536,39.3610962,3967.7,3967.6,0.002]
[1761010803122,38.2655142,3967.7,3967.6,0.002]
[1761010803325,37.1690482,3967.7,3967.6,0.002]
[1761010803532,34.7865412,3967.7,3967.6,0.002]
[1761010804162,30.8289972,3967.7,3967.6,0.002]
[1761010804458,14.76404754,3967.7,3967.6,0.002]
[1761010804657,25.38929322,3967.7,3967.6,0.002]
[1761010804872,25.43323332,3967.7,3967.6,0.002]
[1761010805360,25.53233332,3967.7,3967.6,0.002]
[1761010805563,39.36297332,3967.7,3967.6,0.002]
[1761010805730,29.68740232,3967.7,3967.6,0.002]
[1761010806538,35.51921132,3967.7,3967.6,0.002]
[1761010806772,30.12895832,3967.7,3967.6,0.002]
[1761010807762,32.26315832,3967.7,3966.8,0.002]
[1761010807947,30.83983411,3966.9,3966.8,0.002]
[1761010808125,27.13701247,3966.9,3966.8,0.002]
[1761010808329,11.83658081,3966.9,3966.8,0.002]
[1761010808557,11.29352111,3966.9,3966.8,0.002]
[1761010809639,15.47414811,3966.9,3966.8,0.002]
[1761010809842,14.47852211,3966.9,3966.8,0.002]
[1761010810046,13.78718411,3966.9,3966.8,0.4433]
[1761010810443,12.46295511,3966.9,3966.8,0.4433]
[1761010810646,10.12637338,3966.9,3966.8,0.4433]
[1761010810846,10.12637338,3966.9,3966.8,0.002]
[1761010811664,17.44417738,3966.9,3966.8,0.002]
[1761010811864,14.32503038,3966.9,3966.8,0.002]
[1761010812537,7.58591538,3966.9,3966.8,0.002]
[1761010812736,20.95348698,3966.9,3966.8,0.002]
[1761010812937,19.96787498,3966.9,3966.8,0.002]
[1761010813137,20.40726824,3966.9,3966.8,0.002]
[1761010813535,16.96061797,3966.9,3966.8,0.4433]
[1761010813735,13.40412797,3966.9,3966.8,0.4433]
[1761010814039,15.43535397,3966.9,3966.8,0.4433]
[1761010814734,19.33927097,3966.9,3966.8,0.4433]
[1761010815268,18.59549697,3966.9,3966.8,0.4433]
[1761010815764,13.88034697,3966.9,3966.8,0.4433]
[1761010815970,16.42703497,3966.9,3966.8,0.4433]
[1761010816635,15.98753297,3966.9,3966.8,0.4433]
[1761010816931,13.40312797,3966.9,3966.8,0.4433]
[1761010817366,10.19212797,3966.9,3966.8,0.4433]
[1761010817569,3.25394549,3966.9,3966.8,0.4433]
[1761010817884,4.98194549,3966.9,3966.8,0.4433]
[1761010818035,7.45886011,3966.9,3966.8,0.4433]
[1761010818443,12.96273471,3966.9,3966.8,0.4433]
[1761010818870,16.05014171,3966.9,3966.8,0.43]
[1761010821195,16.0940826,3966.9,3966.8,0.43]
[1761010826655,15.3926056,3966.9,3966.8,0.43]
[1761010827086,13.0066756,3966.9,3966.8,0.43]
[1761010827587,1.77194089,3966.9,3966.8,0.43]
[1761010827786,4.97894089,3966.9,3966.8,0.43]
[1761010827988,7.499801,3966.9,3966.8,0.43]
[1761010828189,7.45586011,3966.9,3966.8,0.43]
[1761010830586,7.49979814,3966.9,3966.8,0.43]
[1761010833779,7.49979814,3966.9,3966.8,0.002]
[1761010833992,7.49979814,3966.9,3966.8,0.4418]
[1761010835366,11.89361514,3966.9,3966.8,0.002]
[1761010835567,7.49979814,3966.9,3966.8,0.002]
[1761010835767,9.53658614,3966.9,3966.8,0.002]
[1761010835983,9.53658614,3966.9,3966.8,0.4418]
[1761010835984,7.49979814,3966.9,3966.8,0.4418]
[1761010837890,7.49979814,3966.9,3966.8,0.002]
[1761010838965,7.49979814,3966.9,3966.8,0.4418]
[1761010841789,7.49979814,3966.9,3966.8,0.002]
[1761010841978,12.08449514,3966.9,3966.8,0.4418]
[1761010842363,12.08449514,3966.9,3966.8,0.002]
[1761010842568,22.27115314,3966.9,3966.8,0.002]
[1761010843278,20.61328884,3966.9,3966.8,0.002]
[1761010843594,39.75496184,3966.9,3966.8,0.002]
[1761010843904,36.49571081,3966.9,3966.8,0.002]
[1761010844096,34.26975881,3966.9,3966.8,0.002]
[1761010844280,34.77663881,3966.9,3966.8,0.002]
[1761010844476,13.57295281,3966.9,3966.8,0.002]
[1761010844800,36.20768499,3966.9,3966.8,0.002]
[1761010845663,19.72629629,3966.9,3966.8,0.002]
[1761010845867,19.19652129,3966.9,3966.8,0.002]
[1761010846297,19.24046612,3966.9,3966.8,0.002]
[1761010846695,27.35944512,3966.9,3966.8,0.002]
[1761010847605,12.52702812,3966.9,3966.8,0.002]
[1761010847772,27.35944512,3966.9,3966.8,0.002]
[1761010848800,26.96236782,3966.9,3966.8,0.002]
[1761010848977,21.41599882,3966.9,3966.8,0.002]
[1761010849176,19.17755382,3966.9,3966.8,0.002]
[1761010849796,22.70128282,3966.9,3966.8,0.002]
[1761010849997,18.74848112,3966.9,3966.8,0.002]
[1761010850203,15.26728212,3966.9,3966.8,0.002]
[1761010850403,4.63136801,3966.9,3966.8,0.4418]
[1761010850623,5.76980494,3966.9,3966.8,0.4418]
[1761010850914,7.49780494,3966.9,3966.8,0.4418]
[1761010851115,4.933,3966.9,3966.8,0.4418]
[1761010851276,7.45386011,3966.9,3966.8,0.4418]
[1761010852973,4.933,3966.9,3966.8,0.4418]
[1761010853200,7.45386011,3966.9,3966.8,0.4418]
[1761010853403,7.45386011,3966.9,3966.8,0.002]
[1761010853597,7.49780077,3966.9,3966.8,0.002]
[1761010853798,7.49780077,3966.9,3966.8,0.4418]
[1761010857281,4.97694066,3966.9,3966.8,0.4418]
[1761010858009,4.933,3966.9,3966.8,0.4418]
[1761010860708,0.001,3967.2,3966.8,2.96270399]
[1761010860923,4.58742318,3966.9,3966.8,0.002]
[1761010861127,25.41371899,3966.9,3966.8,0.002]
[1761010861327,4.24911433,3966.5,3966.4,0.002]
[1761010861498,16.99577639,3966.5,3966.4,0.002]
[1761010861697,20.48336421,3966.5,3966.4,0.002]
[1761010862298,18.38594889,3966.5,3966.4,0.002]
[1761010863131,16.20069989,3966.5,3966.4,0.002]
[1761010863296,12.08548389,3966.5,3966.4,0.4716]
[1761010863502,15.74648989,3966.5,3966.4,0.002]
[1761010864086,12.08548389,3966.5,3966.4,0.002]
[1761010865126,12.08548389,3966.5,3966.4,0.4716]
[1761010866725,9.56436956,3966.5,3966.4,0.4716]
[1761010866935,12.08548389,3966.5,3966.4,0.4716]
[1761010867319,9.56436956,3966.5,3966.4,0.4716]
[1761010867523,9.52042318,3966.5,3966.4,0.4716]
[1761010868591,4.933,3966.5,3966.4,0.4716]
[1761010869922,1.728,3966.5,3966.4,0.4716]
[1761010870504,0.04394178,3966.5,3966.4,0.4716]
[1761010870700,4.63136496,3966.5,3966.4,0.4716]
[1761010872833,4.63136496,3966.5,3966.4,0.002]